[Event "*** Titled Tuesday Blitz"]
[Site "Chess.com"]
[Date "2019.12.03"]
[Round "3"]
[White "BigAl"]
[Black "HarutyunianTigranK"]
[Result "0-1"]
[WhiteElo "2445"]
[BlackElo "2763"]
[TimeControl "180+2"]
[EndTime "13:41:07 PST"]
[Termination "HarutyunianTigranK won by resignation"]

1. e4 {[%clk 0:03:01.8]} 1... e5 {[%clk 0:03:00.2]} 2. Bc4 {[%clk 0:03:02.2]}
2... Bc5 {[%clk 0:02:59.3]} 3. d3 {[%clk 0:03:03.6]} 3... Nf6 {[%clk 0:02:59.8]}
4. Nf3 {[%clk 0:03:05.5]} 4... Nc6 {[%clk 0:02:59.3]} 5. c3 {[%clk 0:03:06.6]}
5... O-O {[%clk 0:02:59]} 6. Bb3 {[%clk 0:03:08.1]} 6... h6 {[%clk 0:02:59.7]}
7. Nbd2 {[%clk 0:03:07.2]} 7... d6 {[%clk 0:02:58.6]} 8. h3 {[%clk 0:03:08.6]}
8... a6 {[%clk 0:02:54.5]} 9. g4 {[%clk 0:03:07.3]} 9... Be6 {[%clk 0:02:46.8]}
10. Nf1 {[%clk 0:03:05.9]} 10... Bxb3 {[%clk 0:02:46.7]} 11. axb3 {[%clk
0:03:06.8]} 11... d5 {[%clk 0:02:45.7]} 12. Qe2 {[%clk 0:03:08]} 12... dxe4
{[%clk 0:02:31.4]} 13. dxe4 {[%clk 0:03:08.7]} 13... Ne7 {[%clk 0:02:30.9]} 14.
g5 {[%clk 0:03:02.9]} 14... hxg5 {[%clk 0:02:29.5]} 15. Bxg5 {[%clk 0:03:02.7]}
15... Ng6 {[%clk 0:02:30.2]} 16. Rg1 {[%clk 0:02:53.4]} 16... Nf4 {[%clk
0:02:28.5]} 17. Bxf4 {[%clk 0:02:49.4]} 17... exf4 {[%clk 0:02:30.4]} 18. e5
{[%clk 0:02:35.9]} 18... Re8 {[%clk 0:02:30.3]} 19. Qc4 {[%clk 0:02:23.2]} 19...
Qd5 {[%clk 0:02:23.1]} 20. Qxd5 {[%clk 0:01:47.4]} 20... Nxd5 {[%clk 0:02:22.3]}
21. O-O-O {[%clk 0:01:46.7]} 21... Rad8 {[%clk 0:02:17.3]} 22. Rg2 {[%clk
0:01:34.5]} 22... Ne7 {[%clk 0:02:12.1]} 23. N1d2 {[%clk 0:01:32.8]} 23... Ng6
{[%clk 0:02:09.5]} 24. Rdg1 {[%clk 0:01:28.7]} 24... Bf8 {[%clk 0:02:06.5]} 25.
Ne4 {[%clk 0:01:25.1]} 25... Re6 {[%clk 0:01:54.5]} 26. Kc2 {[%clk 0:01:18.1]}
26... Nxe5 {[%clk 0:01:49.4]} 27. Nxe5 {[%clk 0:01:04]} 27... Rxe5 {[%clk
0:01:51.3]} 28. Nf6+ {[%clk 0:01:05.9]} 28... Kh8 {[%clk 0:01:51.4]} 29. Rg4
{[%clk 0:01:07.6]} 29... g6 {[%clk 0:01:25.5]} 30. Rh4+ {[%clk 0:00:41.9]} 30...
Kg7 {[%clk 0:01:25.1]} 31. Nh5+ {[%clk 0:00:42.8]} 31... Kg8 {[%clk 0:01:21]}
32. Nf6+ {[%clk 0:00:40.9]} 32... Kg7 {[%clk 0:01:21.9]} 33. Nh5+ {[%clk
0:00:42.2]} 33... Rxh5 {[%clk 0:01:19.8]} 34. Rxh5 {[%clk 0:00:43.4]} 34... Re8
{[%clk 0:01:16]} 35. Rd5 {[%clk 0:00:44.3]} 35... Bd6 {[%clk 0:01:12.9]} 36. Kd3
{[%clk 0:00:28.1]} 36... Rh8 {[%clk 0:01:13.2]} 37. Rh1 {[%clk 0:00:29.6]} 37...
f5 {[%clk 0:01:12.8]} 38. Ra5 {[%clk 0:00:19.8]} 38... Kf6 {[%clk 0:01:13.4]}
39. Raa1 {[%clk 0:00:13.8]} 39... g5 {[%clk 0:01:14.5]} 40. f3 {[%clk
0:00:15.2]} 40... Bc5 {[%clk 0:01:13.8]} 41. Rae1 {[%clk 0:00:16.2]} 41... Rd8+
{[%clk 0:01:12.6]} 42. Kc2 {[%clk 0:00:17.6]} 42... b6 {[%clk 0:01:04.2]} 43.
Rd1 {[%clk 0:00:19.1]} 43... Rh8 {[%clk 0:01:03.4]} 44. b4 {[%clk 0:00:20.4]}
44... Bd6 {[%clk 0:01:03.6]} 45. Rde1 {[%clk 0:00:21.4]} 45... Rh7 {[%clk
0:00:53.7]} 46. Kd3 {[%clk 0:00:22]} 46... Rd7 {[%clk 0:00:52.6]} 47. Kc2 {[%clk
0:00:23.2]} 47... Rg7 {[%clk 0:00:46.4]} 48. Kd3 {[%clk 0:00:23.6]} 48... Rh7
{[%clk 0:00:44.4]} 49. Kc4 {[%clk 0:00:24.2]} 49... Rd7 {[%clk 0:00:43.3]} 50.
Rd1 {[%clk 0:00:23.9]} 50... Rh7 {[%clk 0:00:37.8]} 51. Kd5 {[%clk 0:00:25]}
51... Be5 {[%clk 0:00:22.8]} 52. Kc6 {[%clk 0:00:26.3]} 52... Re7 {[%clk
0:00:14.9]} 53. Kb7 {[%clk 0:00:23.7]} 53... a5 {[%clk 0:00:12.6]} 54. bxa5
{[%clk 0:00:23.9]} 54... bxa5 {[%clk 0:00:14.5]} 55. Kc6 {[%clk 0:00:25.2]}
55... a4 {[%clk 0:00:15.3]} 56. Rhe1 {[%clk 0:00:23.7]} 56... Re6+ {[%clk
0:00:16]} 57. Kc5 {[%clk 0:00:24.8]} 57... Rb6 {[%clk 0:00:15.8]} 58. Re2 {[%clk
0:00:25.1]} 58... a3 {[%clk 0:00:11]} 59. bxa3 {[%clk 0:00:26.1]} 59... Bd6+
{[%clk 0:00:12.3]} 60. Kc4 {[%clk 0:00:26.1]} 60... Bxa3 {[%clk 0:00:13.1]} 61.
Rd5 {[%clk 0:00:26.5]} 61... Bd6 {[%clk 0:00:13.2]} 62. Re8 {[%clk 0:00:26.9]}
62... Rb1 {[%clk 0:00:12.1]} 63. Rh8 {[%clk 0:00:27.2]} 63... Rf1 {[%clk
0:00:11.2]} 64. Rh6+ {[%clk 0:00:28.1]} 64... Kg7 {[%clk 0:00:12.5]} 65. Rh5
{[%clk 0:00:28.3]} 65... Kg6 {[%clk 0:00:13]} 66. Rh8 {[%clk 0:00:29.7]} 66...
Rxf3 {[%clk 0:00:14.2]} 67. Rf8 {[%clk 0:00:30.7]} 67... Rxh3 {[%clk 0:00:14]}
68. Rfxf5 {[%clk 0:00:30.5]} 68... Rg3 {[%clk 0:00:15.2]} 69. Kd4 {[%clk
0:00:28.6]} 69... Kh5 {[%clk 0:00:14.4]} 70. c4 {[%clk 0:00:29.2]} 70... f3
{[%clk 0:00:06.3]} 71. c5 {[%clk 0:00:30.3]} 71... Be7 {[%clk 0:00:05.9]} 72.
Ke4 {[%clk 0:00:31.3]} 72... Kg4 {[%clk 0:00:05]} 73. Rfe5 {[%clk 0:00:30.3]}
73... Rg1 {[%clk 0:00:05.3]} 74. Kd3 {[%clk 0:00:29.7]} 74... Bf6 {[%clk
0:00:05.4]} 75. Re4+ {[%clk 0:00:30.9]} 75... Kg3 {[%clk 0:00:06]} 76. Rf5
{[%clk 0:00:32.3]} 76... Bd8 {[%clk 0:00:06.2]} 77. Re8 {[%clk 0:00:30.4]} 77...
f2 {[%clk 0:00:07]} 78. Ke2 {[%clk 0:00:31.3]} 78... Re1+ {[%clk 0:00:07.8]} 79.
Kd2 {[%clk 0:00:32.7]} 79... Rxe8 {[%clk 0:00:09.5]} 0-1

[Event "*** Titled Tuesday Blitz"]
[Site "Chess.com"]
[Date "2019.12.03"]
[Round "3"]
[White "FrenchMonster2002"]
[Black "Kostya_Nikologorskiy"]
[Result "0-1"]
[WhiteElo "2391"]
[BlackElo "2648"]
[TimeControl "180+2"]
[EndTime "13:41:25 PST"]
[Termination "Kostya_Nikologorskiy won by resignation"]

1. d4 {[%clk 0:03:01.9]} 1... Nf6 {[%clk 0:03:00.4]} 2. Bf4 {[%clk 0:03:03]}
2... g6 {[%clk 0:02:53.5]} 3. Nc3 {[%clk 0:03:03.7]} 3... Bg7 {[%clk 0:02:54.4]}
4. e4 {[%clk 0:03:05]} 4... d6 {[%clk 0:02:55.5]} 5. Qd2 {[%clk 0:03:06.4]} 5...
Nbd7 {[%clk 0:02:31.5]} 6. Nf3 {[%clk 0:02:42.9]} 6... c5 {[%clk 0:02:22.6]} 7.
d5 {[%clk 0:02:10.7]} 7... O-O {[%clk 0:02:20]} 8. Bh6 {[%clk 0:02:04.9]} 8...
Ne5 {[%clk 0:02:18.6]} 9. Nxe5 {[%clk 0:01:53.1]} 9... dxe5 {[%clk 0:02:19.4]}
10. Bxg7 {[%clk 0:01:54.6]} 10... Kxg7 {[%clk 0:02:21]} 11. O-O-O {[%clk
0:01:51.4]} 11... a6 {[%clk 0:02:14.3]} 12. f4 {[%clk 0:01:46.9]} 12... Qd6
{[%clk 0:02:06.5]} 13. g3 {[%clk 0:01:26]} 13... b5 {[%clk 0:02:06.6]} 14. fxe5
{[%clk 0:01:27.5]} 14... Qxe5 {[%clk 0:02:07.6]} 15. Qf4 {[%clk 0:01:29.4]}
15... Nd7 {[%clk 0:02:08.4]} 16. Bh3 {[%clk 0:01:20.7]} 16... b4 {[%clk
0:01:38.3]} 17. Bxd7 {[%clk 0:00:57.1]} 17... Qxf4+ {[%clk 0:01:38.5]} 18. gxf4
{[%clk 0:00:59]} 18... Bxd7 {[%clk 0:01:40.3]} 19. Nb1 {[%clk 0:00:48.4]} 19...
Bg4 {[%clk 0:01:20]} 20. Rde1 {[%clk 0:00:44.9]} 20... e5 {[%clk 0:01:16.9]} 21.
fxe5 {[%clk 0:00:40.4]} 21... Rfe8 {[%clk 0:01:14.1]} 22. Nd2 {[%clk 0:00:40.4]}
22... Rxe5 {[%clk 0:01:15.1]} 23. Nc4 {[%clk 0:00:40.9]} 23... Re7 {[%clk
0:01:14.6]} 24. d6 {[%clk 0:00:21.5]} 24... Re6 {[%clk 0:01:13.5]} 25. e5 {[%clk
0:00:22.8]} 25... Bf3 {[%clk 0:01:11.9]} 26. Rhf1 {[%clk 0:00:20.5]} 26... Bc6
{[%clk 0:01:10.7]} 27. Kd2 {[%clk 0:00:15.3]} 27... a5 {[%clk 0:01:06.6]} 28. b3
{[%clk 0:00:14]} 28... a4 {[%clk 0:01:07.5]} 29. Rf2 {[%clk 0:00:10.7]} 29...
Ra7 {[%clk 0:01:04]} 30. Ref1 {[%clk 0:00:09.4]} 30... Bb5 {[%clk 0:01:04.9]}
31. Re1 {[%clk 0:00:04]} 31... Kf8 {[%clk 0:00:57.3]} 32. Nb6 {[%clk 0:00:03]}
32... axb3 {[%clk 0:00:53.8]} 33. axb3 {[%clk 0:00:04.9]} 33... Ke8 {[%clk
0:00:53.3]} 34. Nd5 {[%clk 0:00:05.5]} 34... f5 {[%clk 0:00:33.4]} 35. Nc7+
{[%clk 0:00:05.3]} 35... Rxc7 {[%clk 0:00:34.3]} 36. dxc7 {[%clk 0:00:07.2]}
36... Rc6 {[%clk 0:00:35.9]} 37. Ke3 {[%clk 0:00:04.7]} 37... Rxc7 {[%clk
0:00:35.3]} 38. Rd2 {[%clk 0:00:06]} 38... g5 {[%clk 0:00:33.2]} 39. h4 {[%clk
0:00:06]} 39... f4+ {[%clk 0:00:23.3]} 40. Ke4 {[%clk 0:00:07.2]} 40... h6
{[%clk 0:00:23.2]} 41. hxg5 {[%clk 0:00:07.9]} 41... hxg5 {[%clk 0:00:25.1]} 42.
Kf5 {[%clk 0:00:07.4]} 42... f3 {[%clk 0:00:22.5]} 43. Kxg5 {[%clk 0:00:04.5]}
43... Rf7 {[%clk 0:00:22.9]} 44. e6 {[%clk 0:00:05]} 44... Rg7+ {[%clk
0:00:13.6]} 45. Kf6 {[%clk 0:00:05.3]} 45... Rh7 {[%clk 0:00:15]} 46. Rf2 {[%clk
0:00:04.7]} 46... Rh6+ {[%clk 0:00:14]} 47. Kg5 {[%clk 0:00:05.4]} 47... Rh3
{[%clk 0:00:15.3]} 48. Re3 {[%clk 0:00:06.1]} 48... Be2 {[%clk 0:00:15.2]} 49.
Kg4 {[%clk 0:00:04]} 49... Rh6 {[%clk 0:00:15.5]} 50. Kg5 {[%clk 0:00:03.7]}
50... Rh1 {[%clk 0:00:15.7]} 51. Kf5 {[%clk 0:00:03.6]} 51... Ke7 {[%clk
0:00:16.9]} 52. Ke5 {[%clk 0:00:04.9]} 52... Rh5+ {[%clk 0:00:18.1]} 53. Ke4
{[%clk 0:00:05.2]} 53... Kxe6 {[%clk 0:00:18.5]} 54. Kf4+ {[%clk 0:00:05]} 54...
Kd5 {[%clk 0:00:19.4]} 55. Kg4 {[%clk 0:00:04.3]} 55... Rh1 {[%clk 0:00:18.2]}
56. Kf4 {[%clk 0:00:05.5]} 56... Kd4 {[%clk 0:00:18.6]} 57. Re4+ {[%clk
0:00:05.9]} 57... Kc3 {[%clk 0:00:19.1]} 58. Re5 {[%clk 0:00:07.2]} 58... Kxc2
{[%clk 0:00:18.6]} 59. Rxc5+ {[%clk 0:00:08.4]} 59... Kxb3 {[%clk 0:00:20.1]}
60. Ke3 {[%clk 0:00:10]} 60... Rd1 {[%clk 0:00:19.8]} 61. Rh2 {[%clk 0:00:08.7]}
61... Rd3+ {[%clk 0:00:20.5]} 62. Kf2 {[%clk 0:00:09.7]} 62... Rd2 {[%clk
0:00:19.1]} 63. Ke3 {[%clk 0:00:10]} 63... Rc2 {[%clk 0:00:19.9]} 64. Rd5 {[%clk
0:00:07.2]} 64... Rc3+ {[%clk 0:00:20.3]} 65. Kf2 {[%clk 0:00:07.7]} 65... Kc2
{[%clk 0:00:20.7]} 66. Rh4 {[%clk 0:00:07.1]} 66... b3 {[%clk 0:00:21.8]} 67.
Rhd4 {[%clk 0:00:06.6]} 67... b2 {[%clk 0:00:22.9]} 68. Rd2+ {[%clk 0:00:07.9]}
68... Kc1 {[%clk 0:00:24.4]} 69. Rxb2 {[%clk 0:00:02.6]} 69... Kxb2 {[%clk
0:00:25.4]} 70. Ke1 {[%clk 0:00:04.1]} 70... Kb3 {[%clk 0:00:25.3]} 71. Rd8
{[%clk 0:00:04.4]} 71... Rd3 {[%clk 0:00:25.3]} 72. Rf8 {[%clk 0:00:02.9]} 72...
Rd5 {[%clk 0:00:23.1]} 73. Re8 {[%clk 0:00:02.7]} 73... Kc3 {[%clk 0:00:24.4]}
74. Re3+ {[%clk 0:00:03]} 74... Kd4 {[%clk 0:00:25.3]} 75. Re8 {[%clk
0:00:03.6]} 75... Re5 {[%clk 0:00:26.1]} 76. Rd8+ {[%clk 0:00:04.2]} 76... Ke3
{[%clk 0:00:22.6]} 77. Rf8 {[%clk 0:00:04.5]} 77... Bd3 {[%clk 0:00:21.4]} 78.
Rf6 {[%clk 0:00:03.1]} 78... Rb5 {[%clk 0:00:19.3]} 79. Re6+ {[%clk 0:00:03.1]}
79... Be4 {[%clk 0:00:20.6]} 80. Rd6 {[%clk 0:00:02.8]} 80... Rb1+ {[%clk
0:00:20]} 81. Rd1 {[%clk 0:00:04.7]} 81... f2+ {[%clk 0:00:21.5]} 0-1

[Event "*** Titled Tuesday Blitz"]
[Site "Chess.com"]
[Date "2019.12.03"]
[Round "3"]
[White "becemix"]
[Black "HiHaruka"]
[Result "0-1"]
[WhiteElo "2489"]
[BlackElo "2297"]
[TimeControl "180+2"]
[EndTime "13:42:05 PST"]
[Termination "HiHaruka won on time"]

1. e4 {[%clk 0:03:00.1]} 1... Nf6 {[%clk 0:02:57.2]} 2. e5 {[%clk 0:03:00.1]}
2... Nd5 {[%clk 0:02:57.3]} 3. c4 {[%clk 0:03:01]} 3... Nb6 {[%clk 0:02:56.9]}
4. d4 {[%clk 0:03:02.4]} 4... d6 {[%clk 0:02:57.3]} 5. exd6 {[%clk 0:03:02.1]}
5... exd6 {[%clk 0:02:55.6]} 6. Nc3 {[%clk 0:03:01.8]} 6... Nc6 {[%clk
0:02:52.3]} 7. Be3 {[%clk 0:03:00]} 7... Be7 {[%clk 0:02:51.6]} 8. Bd3 {[%clk
0:03:00.5]} 8... Bf6 {[%clk 0:02:44.2]} 9. Nge2 {[%clk 0:03:00.5]} 9... O-O
{[%clk 0:02:43.3]} 10. O-O {[%clk 0:03:00.9]} 10... Nb4 {[%clk 0:02:37.8]} 11.
b3 {[%clk 0:02:56.6]} 11... Nxd3 {[%clk 0:02:35.2]} 12. Qxd3 {[%clk 0:02:57.2]}
12... Bg4 {[%clk 0:02:35.9]} 13. f3 {[%clk 0:02:52.5]} 13... Bh5 {[%clk
0:02:36.2]} 14. Nf4 {[%clk 0:02:52.2]} 14... Bg6 {[%clk 0:02:37.4]} 15. Nxg6
{[%clk 0:02:53.3]} 15... hxg6 {[%clk 0:02:39.3]} 16. d5 {[%clk 0:02:53]} 16...
Nd7 {[%clk 0:02:33.9]} 17. Rae1 {[%clk 0:02:47.4]} 17... Ne5 {[%clk 0:02:27.8]}
18. Qc2 {[%clk 0:02:39]} 18... Qd7 {[%clk 0:02:26.5]} 19. Ne4 {[%clk 0:02:38]}
19... Bh4 {[%clk 0:02:14.7]} 20. Re2 {[%clk 0:02:28.4]} 20... Qf5 {[%clk
0:02:10]} 21. Bf2 {[%clk 0:02:16.1]} 21... Bxf2+ {[%clk 0:01:43.3]} 22. Nxf2
{[%clk 0:01:46.7]} 22... Rfe8 {[%clk 0:01:10]} 23. Qxf5 {[%clk 0:01:45.6]} 23...
gxf5 {[%clk 0:01:10.3]} 24. Rfe1 {[%clk 0:01:46.4]} 24... Kf8 {[%clk 0:01:11.3]}
25. f4 {[%clk 0:01:40.4]} 25... Nd7 {[%clk 0:00:52.4]} 26. Nd3 {[%clk
0:01:41.2]} 26... Nf6 {[%clk 0:00:39.9]} 27. Nf2 {[%clk 0:01:39.8]} 27... Rxe2
{[%clk 0:00:35.4]} 28. Rxe2 {[%clk 0:01:40.8]} 28... a5 {[%clk 0:00:35.2]} 29.
a4 {[%clk 0:01:38.2]} 29... Ra6 {[%clk 0:00:30.3]} 30. Re3 {[%clk 0:01:33.5]}
30... c6 {[%clk 0:00:27.1]} 31. dxc6 {[%clk 0:01:32.9]} 31... bxc6 {[%clk
0:00:29]} 32. Kf1 {[%clk 0:01:31.4]} 32... Rb6 {[%clk 0:00:27.1]} 33. Rc3 {[%clk
0:01:29.6]} 33... c5 {[%clk 0:00:19.3]} 34. Ke2 {[%clk 0:01:25.5]} 34... Ke7
{[%clk 0:00:19.7]} 35. Kf3 {[%clk 0:01:26.4]} 35... Kd7 {[%clk 0:00:17.7]} 36.
h3 {[%clk 0:01:27.5]} 36... Rb8 {[%clk 0:00:17.8]} 37. g4 {[%clk 0:01:28.1]}
37... fxg4+ {[%clk 0:00:18]} 38. hxg4 {[%clk 0:01:28.6]} 38... Re8 {[%clk
0:00:19.2]} 39. g5 {[%clk 0:01:27.3]} 39... Ng8 {[%clk 0:00:18.3]} 40. Ne4
{[%clk 0:01:27.9]} 40... Ne7 {[%clk 0:00:19.3]} 41. Rd3 {[%clk 0:01:27.6]} 41...
Nf5 {[%clk 0:00:14.3]} 42. Nxc5+ {[%clk 0:01:28.4]} 42... Kc6 {[%clk 0:00:15.8]}
43. Ne4 {[%clk 0:01:16.3]} 43... Nh4+ {[%clk 0:00:16.6]} 44. Ke3 {[%clk
0:01:09.9]} 44... Ng2+ {[%clk 0:00:16.5]} 45. Kf3 {[%clk 0:01:10.9]} 45... Ne1+
{[%clk 0:00:17.2]} 46. Ke3 {[%clk 0:01:12.1]} 46... Nxd3 {[%clk 0:00:18.7]} 47.
Kxd3 {[%clk 0:01:13.5]} 47... Rh8 {[%clk 0:00:18.6]} 48. Nf2 {[%clk 0:01:03.6]}
48... Rb8 {[%clk 0:00:15.2]} 49. Kc3 {[%clk 0:01:04.1]} 49... Rh8 {[%clk
0:00:13.7]} 50. b4 {[%clk 0:01:00.2]} 50... axb4+ {[%clk 0:00:14]} 51. Kxb4
{[%clk 0:01:01.5]} 51... Rh4 {[%clk 0:00:14.5]} 52. Nd3 {[%clk 0:01:02.4]} 52...
Rh3 {[%clk 0:00:14.9]} 53. Kc3 {[%clk 0:01:03.5]} 53... Rh1 {[%clk 0:00:11.9]}
54. a5 {[%clk 0:00:58.9]} 54... Ra1 {[%clk 0:00:09.5]} 55. a6 {[%clk 0:00:57.6]}
55... Kb6 {[%clk 0:00:08.4]} 56. Nb4 {[%clk 0:00:57.3]} 56... Ra3+ {[%clk
0:00:07.5]} 57. Kd4 {[%clk 0:00:57.1]} 57... Ra4 {[%clk 0:00:08.3]} 58. Nd5+
{[%clk 0:00:54.3]} 58... Kxa6 {[%clk 0:00:08.9]} 59. Nc7+ {[%clk 0:00:55.1]}
59... Kb7 {[%clk 0:00:09.7]} 60. Ne8 {[%clk 0:00:57]} 60... Kc6 {[%clk
0:00:10.2]} 61. Nxg7 {[%clk 0:00:54.9]} 61... d5 {[%clk 0:00:11.3]} 62. Nf5
{[%clk 0:00:47.1]} 62... Rxc4+ {[%clk 0:00:10.1]} 63. Ke3 {[%clk 0:00:48.4]}
63... Re4+ {[%clk 0:00:10.7]} 64. Kf3 {[%clk 0:00:49.5]} 64... Kd7 {[%clk
0:00:11.1]} 65. Ne3 {[%clk 0:00:48.8]} 65... Rd4 {[%clk 0:00:12]} 66. Ng4 {[%clk
0:00:42.1]} 66... Ra4 {[%clk 0:00:11.4]} 67. Ne5+ {[%clk 0:00:34.2]} 67... Ke6
{[%clk 0:00:12.4]} 68. Kg4 {[%clk 0:00:35.1]} 68... d4 {[%clk 0:00:10.3]} 69.
Kf3 {[%clk 0:00:32.7]} 69... Kf5 {[%clk 0:00:10.4]} 70. Nxf7 {[%clk 0:00:26.3]}
70... Ra3+ {[%clk 0:00:11.6]} 71. Ke2 {[%clk 0:00:23.3]} 71... Kxf4 {[%clk
0:00:13]} 72. g6 {[%clk 0:00:22.3]} 72... Rg3 {[%clk 0:00:12.9]} 73. Kd2 {[%clk
0:00:21.6]} 73... Rxg6 {[%clk 0:00:08.5]} 74. Kd3 {[%clk 0:00:22.3]} 74... Rg7
{[%clk 0:00:08.2]} 75. Nd8 {[%clk 0:00:15.2]} 75... Rd7 {[%clk 0:00:09.1]} 76.
Nc6 {[%clk 0:00:11.6]} 76... Kf5 {[%clk 0:00:07.9]} 77. Nxd4+ {[%clk 0:00:06.1]}
77... Ke5 {[%clk 0:00:08.2]} 0-1

[Event "*** Titled Tuesday Blitz"]
[Site "Chess.com"]
[Date "2019.12.03"]
[Round "3"]
[White "laboratorio25"]
[Black "rogapa"]
[Result "1/2-1/2"]
[WhiteElo "2433"]
[BlackElo "2708"]
[TimeControl "180+2"]
[EndTime "13:42:06 PST"]
[Termination "Game drawn - insufficient material"]

1. e4 {[%clk 0:03:01.9]} 1... c5 {[%clk 0:01:48.6]} 2. Nf3 {[%clk 0:03:02]} 2...
d6 {[%clk 0:01:49.5]} 3. d4 {[%clk 0:03:02.8]} 3... cxd4 {[%clk 0:01:50.8]} 4.
Nxd4 {[%clk 0:03:04.7]} 4... Nf6 {[%clk 0:01:51.5]} 5. Nc3 {[%clk 0:03:06.3]}
5... a6 {[%clk 0:01:52.9]} 6. Be3 {[%clk 0:03:07.3]} 6... e6 {[%clk 0:01:52.2]}
7. f3 {[%clk 0:03:07.7]} 7... b5 {[%clk 0:01:53]} 8. Qd2 {[%clk 0:03:08.8]} 8...
Nbd7 {[%clk 0:01:53.8]} 9. g4 {[%clk 0:03:10.1]} 9... h6 {[%clk 0:01:51.7]} 10.
h4 {[%clk 0:03:03.8]} 10... Nb6 {[%clk 0:01:50.7]} 11. O-O-O {[%clk 0:02:16.7]}
11... Nfd7 {[%clk 0:01:45.7]} 12. Qf2 {[%clk 0:01:54.4]} 12... Bb7 {[%clk
0:01:45.5]} 13. Kb1 {[%clk 0:01:53.6]} 13... Rc8 {[%clk 0:01:45.9]} 14. Nce2
{[%clk 0:01:49.8]} 14... Nc4 {[%clk 0:01:45.4]} 15. Bc1 {[%clk 0:01:50.2]} 15...
Be7 {[%clk 0:01:21.7]} 16. b3 {[%clk 0:01:35.5]} 16... Nce5 {[%clk 0:01:18.3]}
17. Bb2 {[%clk 0:01:31]} 17... Qc7 {[%clk 0:01:13.6]} 18. Nf4 {[%clk 0:01:12.4]}
18... Bf6 {[%clk 0:01:04.9]} 19. Bd3 {[%clk 0:00:42]} 19... Qc5 {[%clk
0:01:03.7]} 20. g5 {[%clk 0:00:20.9]} 20... hxg5 {[%clk 0:00:58.8]} 21. hxg5
{[%clk 0:00:22.8]} 21... Rxh1 {[%clk 0:01:00]} 22. Rxh1 {[%clk 0:00:24.7]} 22...
Bxg5 {[%clk 0:01:01.4]} 23. Qg3 {[%clk 0:00:24.2]} 23... Bf6 {[%clk 0:01:00.2]}
24. Nh5 {[%clk 0:00:24.3]} 24... Nxd3 {[%clk 0:00:57.7]} 25. Nxf6+ {[%clk
0:00:24.8]} 25... Nxf6 {[%clk 0:00:58.2]} 26. cxd3 {[%clk 0:00:24.7]} 26... Ke7
{[%clk 0:00:58.8]} 27. Qxg7 {[%clk 0:00:20.4]} 27... Rg8 {[%clk 0:00:58.7]} 28.
Nf5+ {[%clk 0:00:20.6]} 28... Qxf5 {[%clk 0:00:58.8]} 29. Qxg8 {[%clk 0:00:21]}
29... Qxf3 {[%clk 0:00:55.1]} 30. Bxf6+ {[%clk 0:00:21.7]} 30... Kxf6 {[%clk
0:00:50.9]} 31. Qh8+ {[%clk 0:00:22.4]} 31... Ke7 {[%clk 0:00:51.5]} 32. Qh3
{[%clk 0:00:23.2]} 32... Qe2 {[%clk 0:00:50.3]} 33. Qf1 {[%clk 0:00:22.9]} 33...
Qd2 {[%clk 0:00:50.1]} 34. Qd1 {[%clk 0:00:22.9]} 34... Qg2 {[%clk 0:00:48.9]}
35. Rg1 {[%clk 0:00:22.7]} 35... Qh3 {[%clk 0:00:49.2]} 36. Rf1 {[%clk
0:00:22.4]} 36... d5 {[%clk 0:00:48.9]} 37. e5 {[%clk 0:00:21.6]} 37... d4
{[%clk 0:00:49.5]} 38. Qc2 {[%clk 0:00:19.8]} 38... Ke8 {[%clk 0:00:49.7]} 39.
Rf2 {[%clk 0:00:18.5]} 39... Qh5 {[%clk 0:00:44.1]} 40. Qe2 {[%clk 0:00:15.6]}
40... Qg6 {[%clk 0:00:41.6]} 41. Kb2 {[%clk 0:00:16]} 41... Bd5 {[%clk
0:00:42.1]} 42. Qc2 {[%clk 0:00:16.6]} 42... Kf8 {[%clk 0:00:42.2]} 43. Qc8+
{[%clk 0:00:17]} 43... Kg7 {[%clk 0:00:42.9]} 44. Qxa6 {[%clk 0:00:17.2]} 44...
Qxd3 {[%clk 0:00:42.7]} 45. Qa5 {[%clk 0:00:18.7]} 45... Qe3 {[%clk 0:00:42.1]}
46. Qd2 {[%clk 0:00:19.1]} 46... Qxe5 {[%clk 0:00:43.2]} 47. Rf4 {[%clk
0:00:20.3]} 47... Qe3 {[%clk 0:00:40.8]} 48. Rxd4 {[%clk 0:00:19.8]} 48... Qxd2+
{[%clk 0:00:34]} 49. Rxd2 {[%clk 0:00:21.7]} 49... Kf6 {[%clk 0:00:35.3]} 50.
Kc3 {[%clk 0:00:22.9]} 50... Ke5 {[%clk 0:00:34.1]} 51. Kb4 {[%clk 0:00:21.6]}
51... f5 {[%clk 0:00:35.4]} 52. Kxb5 {[%clk 0:00:22.5]} 52... f4 {[%clk
0:00:36.9]} 53. b4 {[%clk 0:00:23.4]} 53... f3 {[%clk 0:00:38.3]} 54. a4 {[%clk
0:00:24.2]} 54... Kf4 {[%clk 0:00:38.6]} 55. a5 {[%clk 0:00:19.5]} 55... Ke3
{[%clk 0:00:39.6]} 56. Rd1 {[%clk 0:00:19]} 56... f2 {[%clk 0:00:39.8]} 57. Kc5
{[%clk 0:00:19.5]} 57... Bf3 {[%clk 0:00:38.3]} 58. Ra1 {[%clk 0:00:19.3]} 58...
Ke2 {[%clk 0:00:31.9]} 59. a6 {[%clk 0:00:16.9]} 59... e5 {[%clk 0:00:28.8]} 60.
a7 {[%clk 0:00:07.4]} 60... Ba8 {[%clk 0:00:28.7]} 61. Kd6 {[%clk 0:00:05.2]}
61... e4 {[%clk 0:00:29.6]} 62. Kc7 {[%clk 0:00:06.5]} 62... f1=Q {[%clk
0:00:28.4]} 63. Rxf1 {[%clk 0:00:06.7]} 63... Kxf1 {[%clk 0:00:29.6]} 64. Kb8
{[%clk 0:00:08.4]} 64... Bd5 {[%clk 0:00:24.7]} 65. b5 {[%clk 0:00:09.6]} 65...
e3 {[%clk 0:00:25.5]} 66. b6 {[%clk 0:00:11.1]} 66... e2 {[%clk 0:00:26.4]} 67.
b7 {[%clk 0:00:11.3]} 67... e1=Q {[%clk 0:00:23]} 68. a8=Q {[%clk 0:00:11.9]}
68... Qe8+ {[%clk 0:00:22.8]} 69. Kc7 {[%clk 0:00:10.3]} 69... Qc6+ {[%clk
0:00:23.3]} 70. Kb8 {[%clk 0:00:10.7]} 70... Qd6+ {[%clk 0:00:23.9]} 71. Ka7
{[%clk 0:00:10.4]} 71... Qc5+ {[%clk 0:00:24.5]} 72. Kb8 {[%clk 0:00:11.3]}
72... Kg2 {[%clk 0:00:20.7]} 73. Qa6 {[%clk 0:00:06.5]} 73... Qf8+ {[%clk
0:00:17.7]} 74. Ka7 {[%clk 0:00:07.3]} 74... Qc5+ {[%clk 0:00:18.1]} 75. Qb6
{[%clk 0:00:07.7]} 75... Qa3+ {[%clk 0:00:18.4]} 76. Qa6 {[%clk 0:00:07.2]}
76... Qe7 {[%clk 0:00:17.4]} 77. Qb6 {[%clk 0:00:05.4]} 77... Bf3 {[%clk
0:00:15.7]} 78. Qb2+ {[%clk 0:00:05.2]} 78... Kg3 {[%clk 0:00:16.1]} 79. Qb6
{[%clk 0:00:06]} 79... Kf4 {[%clk 0:00:14.4]} 80. Qb5 {[%clk 0:00:04.8]} 80...
Be4 {[%clk 0:00:14]} 81. Qb6 {[%clk 0:00:03.6]} 81... Ke5 {[%clk 0:00:13.4]} 82.
Qb2+ {[%clk 0:00:03.9]} 82... Kf5 {[%clk 0:00:13.7]} 83. Qb5+ {[%clk 0:00:04.8]}
83... Kg6 {[%clk 0:00:12.7]} 84. Qb6+ {[%clk 0:00:06.3]} 84... Kf7 {[%clk
0:00:13.7]} 85. Qb3+ {[%clk 0:00:07.2]} 85... Kf8 {[%clk 0:00:14.2]} 86. Qb6
{[%clk 0:00:07.9]} 86... Bd5 {[%clk 0:00:14.2]} 87. Qb4 {[%clk 0:00:09]} 87...
Qxb4 {[%clk 0:00:14.6]} 88. b8=Q+ {[%clk 0:00:10]} 88... Qxb8+ {[%clk
0:00:15.8]} 89. Kxb8 {[%clk 0:00:11.9]} 1/2-1/2